[Event "December 12 Late 2023"]
[Site "https://www.chess.com"]
[Date "2023.12.12"]
[Round "2"]
[White "Ehlvest, Jaan"]
[Black "Dubov, Daniil"]
[Result "0-1"]
[Board "2"]
[TimeControl "180+1"]
[WhiteFideId "4500016"]
[BlackFideId "24126055"]
[WhiteElo "2647"]
[BlackElo "3121"]
[WhiteTeam "USA"]
[BlackTeam "RUS"]
[WhiteClock "0:00:00"]
[BlackClock "0:00:04"]

1. e4 {[%clk 0:02:53]}  c5 {[%clk 0:02:59]} 2. Nf3 {[%clk 0:02:51]}  Nc6 {[%clk 0:02:59]} 3. d4 {[%clk 0:02:48]}  cxd4 {[%clk 0:02:59]} 4. Nxd4 {[%clk 0:02:48]}  Nf6 {[%clk 0:03:00]} 5. Nc3 {[%clk 0:02:47]}  e5 {[%clk 0:03:00]} 6. Ndb5 {[%clk 0:02:46]}  d6 {[%clk 0:03:01]} 7. Bg5 {[%clk 0:02:46]}  a6 {[%clk 0:03:00]} 8. Na3 {[%clk 0:02:45]}  b5 {[%clk 0:03:01]} 9. Bxf6 {[%clk 0:02:46]}  gxf6 {[%clk 0:03:00]} 10. Nab1 {[%clk 0:02:45]}  f5 {[%clk 0:02:58]} 11. Bd3 {[%clk 0:02:45]}  Rg8 {[%clk 0:02:48]} 12. g3 {[%clk 0:02:30]}  Nd4 {[%clk 0:02:45]} 13. exf5 {[%clk 0:02:04]}  d5 {[%clk 0:02:21]} 14. O-O {[%clk 0:01:45]}  e4 {[%clk 0:02:08]} 15. Nxe4 {[%clk 0:01:33]}  dxe4 {[%clk 0:01:48]} 16. Bxe4 {[%clk 0:01:33]}  Ra7 {[%clk 0:01:48]} 17. Nc3 {[%clk 0:01:27]}  Bg7 {[%clk 0:01:44]} 18. Qh5 {[%clk 0:01:19]}  Kf8 {[%clk 0:01:37]} 19. Rfe1 {[%clk 0:00:52]}  Rd7 {[%clk 0:01:30]} 20. Ne2 {[%clk 0:00:46]}  h6 {[%clk 0:01:16]} 21. Nf4 {[%clk 0:00:41]}  Rd6 {[%clk 0:00:57]} 22. c3 {[%clk 0:00:37]}  Nc6 {[%clk 0:00:57]} 23. Rad1 {[%clk 0:00:33]}  Ne7 {[%clk 0:00:23]} 24. Rxd6 {[%clk 0:00:31]}  Qxd6 {[%clk 0:00:23]} 25. Rd1 {[%clk 0:00:31]}  Qc7 {[%clk 0:00:19]} 26. f6 {[%clk 0:00:19]}  Bxf6 {[%clk 0:00:19]} 27. Qxh6+ {[%clk 0:00:19]}  Bg7 {[%clk 0:00:20]} 28. Qh5 {[%clk 0:00:17]}  Rh8 {[%clk 0:00:16]} 29. Qf3 {[%clk 0:00:15]}  Bd7 {[%clk 0:00:13]} 30. Bd5 {[%clk 0:00:13]}  Kg8 {[%clk 0:00:06]} 31. Ng6 {[%clk 0:00:11]}  Nxd5 {[%clk 0:00:06]} 32. Nxh8 {[%clk 0:00:11]}  Nf6 {[%clk 0:00:05]} 33. Qa8+ {[%clk 0:00:07]}  Be8 {[%clk 0:00:06]} 34. Rd8 {[%clk 0:00:06]}  Qe7 {[%clk 0:00:06]} 35. Nxf7 {[%clk 0:00:04]}  Kxf7 {[%clk 0:00:06]} 36. Rd1 {[%clk 0:00:02]}  Kg6 {[%clk 0:00:05]} 37. Qxa6 {[%clk 0:00:02]}  Qe4 {[%clk 0:00:04]} 38. Qd6 {[%clk 0:00:02]}  Bc6 {[%clk 0:00:03]} 39. Qd3 {[%clk 0:00:01]}  Kf7 {[%clk 0:00:03]} 40. Qxe4 {[%clk 0:00:01]}  Nxe4 {[%clk 0:00:04]} 41. Rd8 {[%clk 0:00:01]}  Ng5 {[%clk 0:00:04]} 42. Rc8 {[%clk 0:00:01]}  Bd7 {[%clk 0:00:03]} 43. Rc7 {[%clk 0:00:02]}  Ke6 {[%clk 0:00:04]} 44. Rb7 {[%clk 0:00:02]}  Nf3+ {[%clk 0:00:03]} 45. Kg2 {[%clk 0:00:00]}  Nd2 {[%clk 0:00:04]} 0-1

[Event "December 12 Late 2023"]
[Site "https://www.chess.com"]
[Date "2023.12.12"]
[Round "2"]
[White "Dobrikov, Marco"]
[Black "Fedoseev, Vladimir"]
[Result "0-1"]
[Board "6"]
[TimeControl "180+1"]
[WhiteFideId "12950378"]
[BlackFideId "24130737"]
[WhiteElo "2632"]
[BlackElo "3059"]
[WhiteTeam "GER"]
[BlackTeam "SLO"]
[WhiteClock "0:00:13"]
[BlackClock "0:00:57"]

1. d4 {[%clk 0:03:00]}  Nf6 {[%clk 0:02:13]} 2. Bf4 {[%clk 0:02:48]}  b6 {[%clk 0:02:10]} 3. Nd2 {[%clk 0:02:46]}  Bb7 {[%clk 0:02:07]} 4. Ngf3 {[%clk 0:02:46]}  g6 {[%clk 0:02:07]} 5. c3 {[%clk 0:02:44]}  Bg7 {[%clk 0:02:03]} 6. Qc2 {[%clk 0:02:44]}  c5 {[%clk 0:02:04]} 7. e3 {[%clk 0:02:41]}  d6 {[%clk 0:02:03]} 8. Bd3 {[%clk 0:02:39]}  O-O {[%clk 0:02:03]} 9. h4 {[%clk 0:02:39]}  cxd4 {[%clk 0:01:56]} 10. cxd4 {[%clk 0:02:25]}  Nc6 {[%clk 0:01:54]} 11. a3 {[%clk 0:02:16]}  Rc8 {[%clk 0:01:51]} 12. Qb1 {[%clk 0:02:16]}  e5 {[%clk 0:01:51]} 13. Bg5 {[%clk 0:01:42]}  exd4 {[%clk 0:01:50]} 14. e4 {[%clk 0:01:40]}  h6 {[%clk 0:01:46]} 15. Bxf6 {[%clk 0:01:39]}  Qxf6 {[%clk 0:01:47]} 16. h5 {[%clk 0:01:40]}  g5 {[%clk 0:01:46]} 17. O-O {[%clk 0:01:34]}  g4 {[%clk 0:01:44]} 18. Nh2 {[%clk 0:01:33]}  Qg5 {[%clk 0:01:44]} 19. f4 {[%clk 0:01:30]}  gxf3 {[%clk 0:01:38]} 20. Ndxf3 {[%clk 0:01:17]}  Qe3+ {[%clk 0:01:38]} 21. Kh1 {[%clk 0:01:18]}  Ne5 {[%clk 0:01:38]} 22. Nxe5 {[%clk 0:01:15]}  Bxe5 {[%clk 0:01:39]} 23. Ng4 {[%clk 0:01:01]}  Qg5 {[%clk 0:01:36]} 24. Nxe5 {[%clk 0:00:52]}  Qxh5+ {[%clk 0:01:31]} 25. Kg1 {[%clk 0:00:52]}  dxe5 {[%clk 0:01:31]} 26. Rf5 {[%clk 0:00:50]}  Qg6 {[%clk 0:01:30]} 27. Qf1 {[%clk 0:00:41]}  f6 {[%clk 0:01:29]} 28. Rc1 {[%clk 0:00:35]}  Rxc1 {[%clk 0:01:20]} 29. Qxc1 {[%clk 0:00:36]}  Rc8 {[%clk 0:01:14]} 30. Qd1 {[%clk 0:00:36]}  Rc7 {[%clk 0:01:11]} 31. Qb3+ {[%clk 0:00:35]}  Kh7 {[%clk 0:01:10]} 32. Qe6 {[%clk 0:00:30]}  Rg7 {[%clk 0:01:04]} 33. Rf2 {[%clk 0:00:23]}  Bxe4 {[%clk 0:01:02]} 34. Bxe4 {[%clk 0:00:16]}  Qxe4 {[%clk 0:01:01]} 35. Qxf6 {[%clk 0:00:17]}  d3 {[%clk 0:01:01]} 36. Qd6 {[%clk 0:00:17]}  Qe1+ {[%clk 0:00:58]} 37. Rf1 {[%clk 0:00:16]}  Qe3+ {[%clk 0:00:58]} 38. Kh2 {[%clk 0:00:15]}  Qe2 {[%clk 0:00:57]} 39. Rf6 {[%clk 0:00:13]}  Qxg2# {[%clk 0:00:57]} 0-1

[Event "December 12 Late 2023"]
[Site "https://www.chess.com"]
[Date "2023.12.12"]
[Round "2"]
[White "Pranav, V"]
[Black "Spata, German"]
[Result "1-0"]
[Board "9"]
[TimeControl "180+1"]
[WhiteFideId "25060783"]
[BlackFideId "113026"]
[WhiteElo "3053"]
[BlackElo "2622"]
[WhiteTeam "IND"]
[BlackTeam "ARG"]
[WhiteClock "0:01:57"]
[BlackClock "0:00:00"]

1. e4 {[%clk 0:03:00]}  e6 {[%clk 0:02:46]} 2. d4 {[%clk 0:02:59]}  d5 {[%clk 0:02:46]} 3. Nc3 {[%clk 0:03:00]}  dxe4 {[%clk 0:02:46]} 4. Nxe4 {[%clk 0:03:00]}  Bd7 {[%clk 0:02:46]} 5. Nf3 {[%clk 0:02:59]}  Bc6 {[%clk 0:02:46]} 6. Bd3 {[%clk 0:02:59]}  Nd7 {[%clk 0:02:46]} 7. O-O {[%clk 0:02:58]}  Ngf6 {[%clk 0:02:47]} 8. Ng3 {[%clk 0:02:59]}  g6 {[%clk 0:02:47]} 9. Re1 {[%clk 0:02:59]}  Bg7 {[%clk 0:02:41]} 10. c3 {[%clk 0:02:59]}  O-O {[%clk 0:02:40]} 11. h3 {[%clk 0:02:59]}  Re8 {[%clk 0:02:31]} 12. Bf4 {[%clk 0:02:52]}  Bxf3 {[%clk 0:02:26]} 13. Qxf3 {[%clk 0:02:51]}  c6 {[%clk 0:02:23]} 14. Rad1 {[%clk 0:02:45]}  Qa5 {[%clk 0:02:20]} 15. Bb1 {[%clk 0:02:45]}  Qd5 {[%clk 0:02:12]} 16. Qd3 {[%clk 0:02:37]}  Qb5 {[%clk 0:02:08]} 17. Qd2 {[%clk 0:02:34]}  Nb6 {[%clk 0:01:58]} 18. b3 {[%clk 0:02:31]}  Nbd7 {[%clk 0:01:39]} 19. c4 {[%clk 0:02:26]}  Qb6 {[%clk 0:01:38]} 20. Bh6 {[%clk 0:02:26]}  Rad8 {[%clk 0:01:30]} 21. Be3 {[%clk 0:02:17]}  Qc7 {[%clk 0:01:28]} 22. Qc1 {[%clk 0:02:15]}  Nb6 {[%clk 0:01:18]} 23. Bf4 {[%clk 0:02:14]}  Qc8 {[%clk 0:01:17]} 24. Bh6 {[%clk 0:02:12]}  Nbd7 {[%clk 0:01:11]} 25. Bg5 {[%clk 0:02:07]}  Qc7 {[%clk 0:01:06]} 26. Ne4 {[%clk 0:02:06]}  e5 {[%clk 0:00:33]} 27. dxe5 {[%clk 0:01:58]}  Rxe5 {[%clk 0:00:00]} 28. Bf4 {[%clk 0:01:57]} 1-0

[Event "December 12 Late 2023"]
[Site "https://www.chess.com"]
[Date "2023.12.12"]
[Round "2"]
[White "Olsen, Filip Boe"]
[Black "Bluebaum, Matthias"]
[Result "0-1"]
[Board "11"]
[TimeControl "180+1"]
[WhiteFideId "1440640"]
[BlackFideId "24651516"]
[WhiteElo "2615"]
[BlackElo "3033"]
[WhiteTeam "DEN"]
[BlackTeam "GER"]
[WhiteClock "0:00:08"]
[BlackClock "0:01:04"]

1. d4 {[%clk 0:03:00]}  d5 {[%clk 0:02:59]} 2. Nf3 {[%clk 0:03:01]}  e6 {[%clk 0:02:59]} 3. Bf4 {[%clk 0:03:01]}  c5 {[%clk 0:02:59]} 4. e3 {[%clk 0:03:01]}  Nc6 {[%clk 0:02:59]} 5. c3 {[%clk 0:03:00]}  Bd6 {[%clk 0:02:59]} 6. Bg3 {[%clk 0:02:59]}  Nge7 {[%clk 0:02:57]} 7. Nbd2 {[%clk 0:02:58]}  cxd4 {[%clk 0:02:58]} 8. exd4 {[%clk 0:02:58]}  O-O {[%clk 0:02:58]} 9. Bd3 {[%clk 0:02:58]}  f6 {[%clk 0:02:59]} 10. O-O {[%clk 0:02:56]}  Bxg3 {[%clk 0:02:59]} 11. hxg3 {[%clk 0:02:56]}  e5 {[%clk 0:03:00]} 12. dxe5 {[%clk 0:02:03]}  fxe5 {[%clk 0:03:01]} 13. Ng5 {[%clk 0:01:34]}  e4 {[%clk 0:02:42]} 14. Ndxe4 {[%clk 0:01:34]}  dxe4 {[%clk 0:02:43]} 15. Bc4+ {[%clk 0:01:34]}  Kh8 {[%clk 0:02:44]} 16. Qh5 {[%clk 0:01:34]}  Bf5 {[%clk 0:02:38]} 17. Rad1 {[%clk 0:01:27]}  Bg6 {[%clk 0:02:07]} 18. Rxd8 {[%clk 0:00:56]}  Bxh5 {[%clk 0:02:06]} 19. Rd7 {[%clk 0:00:57]}  Ne5 {[%clk 0:01:47]} 20. Rxe7 {[%clk 0:00:52]}  Nxc4 {[%clk 0:01:47]} 21. b3 {[%clk 0:00:48]}  Nd6 {[%clk 0:01:35]} 22. c4 {[%clk 0:00:33]}  h6 {[%clk 0:01:35]} 23. Nh3 {[%clk 0:00:26]}  Rf7 {[%clk 0:01:28]} 24. Re6 {[%clk 0:00:24]}  Nf5 {[%clk 0:01:25]} 25. Nf4 {[%clk 0:00:22]}  Bg4 {[%clk 0:01:22]} 26. Ng6+ {[%clk 0:00:22]}  Kh7 {[%clk 0:01:22]} 27. Ne5 {[%clk 0:00:22]}  Nxg3 {[%clk 0:01:09]} 28. Nxg4 {[%clk 0:00:10]}  Nxf1 {[%clk 0:01:07]} 29. Kxf1 {[%clk 0:00:10]}  Rd8 {[%clk 0:01:06]} 30. Ke2 {[%clk 0:00:09]}  Rfd7 {[%clk 0:01:05]} 31. Rxe4 {[%clk 0:00:09]}  Rd2+ {[%clk 0:01:06]} 32. Kf3 {[%clk 0:00:10]}  Rxa2 {[%clk 0:01:03]} 33. Re7 {[%clk 0:00:10]}  Rd3+ {[%clk 0:01:03]} 34. Kf4 {[%clk 0:00:10]}  Rxb3 {[%clk 0:01:03]} 35. Nf6+ {[%clk 0:00:07]}  Kg6 {[%clk 0:01:03]} 36. Ne8 {[%clk 0:00:07]}  Rxf2+ {[%clk 0:01:03]} 37. Ke5 {[%clk 0:00:07]}  Re2+ {[%clk 0:01:03]} 38. Kd6 {[%clk 0:00:08]}  Rxe7 {[%clk 0:01:04]} 39. Kxe7 {[%clk 0:00:08]}  a5 {[%clk 0:01:04]} 0-1

[Event "December 12 Late 2023"]
[Site "https://www.chess.com"]
[Date "2023.12.12"]
[Round "2"]
[White "Ambartsumova, Karina"]
[Black "Yoo, Christopher Woojin"]
[Result "0-1"]
[Board "13"]
[TimeControl "180+1"]
[WhiteFideId "4166299"]
[BlackFideId "30909694"]
[WhiteElo "2614"]
[BlackElo "3008"]
[WhiteTeam "RUS"]
[BlackTeam "USA"]
[WhiteClock "0:00:01"]
[BlackClock "0:00:15"]

1. d4 {[%clk 0:03:00]}  Nf6 {[%clk 0:03:00]} 2. c4 {[%clk 0:03:00]}  e6 {[%clk 0:03:00]} 3. Nc3 {[%clk 0:03:00]}  Bb4 {[%clk 0:03:00]} 4. a3 {[%clk 0:03:00]}  Bxc3+ {[%clk 0:03:00]} 5. bxc3 {[%clk 0:03:01]}  O-O {[%clk 0:03:00]} 6. e3 {[%clk 0:03:02]}  c5 {[%clk 0:03:00]} 7. Bd3 {[%clk 0:03:02]}  d5 {[%clk 0:02:57]} 8. Ne2 {[%clk 0:03:02]}  dxc4 {[%clk 0:02:57]} 9. Bxc4 {[%clk 0:03:02]}  b6 {[%clk 0:02:57]} 10. O-O {[%clk 0:03:02]}  Qc7 {[%clk 0:02:55]} 11. Bd3 {[%clk 0:02:58]}  Ba6 {[%clk 0:02:55]} 12. Bb2 {[%clk 0:02:37]}  Rd8 {[%clk 0:02:54]} 13. Bxa6 {[%clk 0:02:30]}  Nxa6 {[%clk 0:02:54]} 14. Qa4 {[%clk 0:02:30]}  Qb7 {[%clk 0:02:54]} 15. c4 {[%clk 0:02:26]}  cxd4 {[%clk 0:02:50]} 16. exd4 {[%clk 0:02:26]}  Rac8 {[%clk 0:02:50]} 17. Rac1 {[%clk 0:02:19]}  Ne4 {[%clk 0:02:48]} 18. Rfd1 {[%clk 0:02:16]}  Nd6 {[%clk 0:02:42]} 19. Ng3 {[%clk 0:01:59]}  b5 {[%clk 0:02:12]} 20. cxb5 {[%clk 0:01:45]}  Qxb5 {[%clk 0:02:11]} 21. Qxb5 {[%clk 0:01:36]}  Nxb5 {[%clk 0:02:12]} 22. Rxc8 {[%clk 0:01:18]}  Rxc8 {[%clk 0:02:13]} 23. d5 {[%clk 0:00:57]}  Rd8 {[%clk 0:02:03]} 24. a4 {[%clk 0:00:57]}  Nbc7 {[%clk 0:01:58]} 25. d6 {[%clk 0:00:56]}  Nd5 {[%clk 0:01:58]} 26. Rc1 {[%clk 0:00:47]}  h6 {[%clk 0:01:42]} 27. Ba3 {[%clk 0:00:45]}  Nab4 {[%clk 0:01:36]} 28. Ne4 {[%clk 0:00:31]}  f5 {[%clk 0:01:35]} 29. Nc3 {[%clk 0:00:30]}  Nxc3 {[%clk 0:01:24]} 30. Rxc3 {[%clk 0:00:31]}  Rxd6 {[%clk 0:01:24]} 31. Kf1 {[%clk 0:00:22]}  a5 {[%clk 0:01:03]} 32. Rc8+ {[%clk 0:00:22]}  Kh7 {[%clk 0:01:03]} 33. Rb8 {[%clk 0:00:16]}  Rd4 {[%clk 0:00:57]} 34. Rb5 {[%clk 0:00:15]}  Nc6 {[%clk 0:00:43]} 35. Rc5 {[%clk 0:00:08]}  Rxa4 {[%clk 0:00:40]} 36. Rxc6 {[%clk 0:00:08]}  Rxa3 {[%clk 0:00:40]} 37. Rxe6 {[%clk 0:00:09]}  a4 {[%clk 0:00:39]} 38. h4 {[%clk 0:00:07]}  Ra1+ {[%clk 0:00:36]} 39. Ke2 {[%clk 0:00:08]}  a3 {[%clk 0:00:22]} 40. h5 {[%clk 0:00:08]}  a2 {[%clk 0:00:15]} 41. Ra6 {[%clk 0:00:07]}  Kg8 {[%clk 0:00:15]} 42. Kf3 {[%clk 0:00:07]}  Kf8 {[%clk 0:00:15]} 43. Kf4 {[%clk 0:00:07]}  Rh1 {[%clk 0:00:14]} 44. Rxa2 {[%clk 0:00:05]}  Rxh5 {[%clk 0:00:15]} 45. Ra8+ {[%clk 0:00:05]}  Kf7 {[%clk 0:00:15]} 46. Ra7+ {[%clk 0:00:05]}  Kg6 {[%clk 0:00:15]} 47. Ra6+ {[%clk 0:00:05]}  Kh7 {[%clk 0:00:15]} 48. g3 {[%clk 0:00:05]}  Rh2 {[%clk 0:00:13]} 49. f3 {[%clk 0:00:05]}  Rf2 {[%clk 0:00:13]} 50. Ra3 {[%clk 0:00:04]}  Kg6 {[%clk 0:00:13]} 51. Ra6+ {[%clk 0:00:04]}  Kh5 {[%clk 0:00:14]} 52. Ra3 {[%clk 0:00:05]}  g6 {[%clk 0:00:13]} 53. Rb3 {[%clk 0:00:04]}  Rf1 {[%clk 0:00:13]} 54. Ra3 {[%clk 0:00:04]}  Rb1 {[%clk 0:00:13]} 55. Ra5 {[%clk 0:00:03]}  Rb4+ {[%clk 0:00:13]} 56. Ke3 {[%clk 0:00:03]}  Kg5 {[%clk 0:00:13]} 57. Kf2 {[%clk 0:00:03]}  Rb2+ {[%clk 0:00:13]} 58. Ke3 {[%clk 0:00:03]}  Rg2 {[%clk 0:00:13]} 59. f4+ {[%clk 0:00:02]}  Kg4 {[%clk 0:00:12]} 60. Ra6 {[%clk 0:00:01]}  Rxg3+ {[%clk 0:00:13]} 61. Kd4 {[%clk 0:00:02]}  Kxf4 {[%clk 0:00:13]} 62. Rc6 {[%clk 0:00:02]}  h5 {[%clk 0:00:13]} 63. Re6 {[%clk 0:00:02]}  h4 {[%clk 0:00:14]} 64. Re1 {[%clk 0:00:02]}  h3 {[%clk 0:00:14]} 65. Rf1+ {[%clk 0:00:02]}  Kg4 {[%clk 0:00:15]} 66. Ke5 {[%clk 0:00:02]}  h2 {[%clk 0:00:15]} 67. Kf6 {[%clk 0:00:01]}  Rg1 {[%clk 0:00:15]} 0-1

[Event "December 12 Late 2023"]
[Site "https://www.chess.com"]
[Date "2023.12.12"]
[Round "2"]
[White "Olenik Campa, Rudi"]
[Black "Drygalov, Sergey"]
[Result "0-1"]
[Board "15"]
[TimeControl "180+1"]
[WhiteFideId "14633264"]
[BlackFideId "24171743"]
[WhiteElo "2600"]
[BlackElo "3003"]
[WhiteTeam "SLO"]
[BlackTeam "RUS"]
[WhiteClock "0:00:02"]
[BlackClock "0:00:32"]

1. e4 {[%clk 0:02:52]}  c5 {[%clk 0:03:00]} 2. Nf3 {[%clk 0:02:51]}  d6 {[%clk 0:03:00]} 3. d4 {[%clk 0:02:50]}  cxd4 {[%clk 0:03:01]} 4. Nxd4 {[%clk 0:02:51]}  Nf6 {[%clk 0:03:02]} 5. f3 {[%clk 0:02:51]}  e5 {[%clk 0:02:56]} 6. Nb3 {[%clk 0:02:51]}  d5 {[%clk 0:02:56]} 7. Bg5 {[%clk 0:02:51]}  d4 {[%clk 0:02:57]} 8. c3 {[%clk 0:02:51]}  Nc6 {[%clk 0:02:57]} 9. Bb5 {[%clk 0:02:51]}  h6 {[%clk 0:02:53]} 10. Bh4 {[%clk 0:02:50]}  Be6 {[%clk 0:02:46]} 11. O-O {[%clk 0:02:49]}  Qb6 {[%clk 0:02:44]} 12. Bxc6+ {[%clk 0:02:42]}  bxc6 {[%clk 0:02:44]} 13. Bf2 {[%clk 0:02:36]}  c5 {[%clk 0:02:43]} 14. Na3 {[%clk 0:02:33]}  Be7 {[%clk 0:02:37]} 15. Rc1 {[%clk 0:02:22]}  O-O {[%clk 0:02:37]} 16. cxd4 {[%clk 0:02:22]}  cxd4 {[%clk 0:02:38]} 17. Nc4 {[%clk 0:02:19]}  Qb5 {[%clk 0:02:38]} 18. Nbd2 {[%clk 0:02:14]}  Rfc8 {[%clk 0:02:35]} 19. b3 {[%clk 0:02:14]}  Nd7 {[%clk 0:02:32]} 20. Qe2 {[%clk 0:02:01]}  Bb4 {[%clk 0:02:31]} 21. Rfd1 {[%clk 0:01:57]}  a5 {[%clk 0:02:22]} 22. a4 {[%clk 0:01:56]}  Qb7 {[%clk 0:02:18]} 23. f4 {[%clk 0:01:49]}  Bxd2 {[%clk 0:02:11]} 24. Nxd2 {[%clk 0:01:40]}  f6 {[%clk 0:02:07]} 25. fxe5 {[%clk 0:01:16]}  fxe5 {[%clk 0:02:08]} 26. Qd3 {[%clk 0:01:03]}  Nc5 {[%clk 0:02:06]} 27. Qg3 {[%clk 0:01:03]}  Nxb3 {[%clk 0:02:00]} 28. Rb1 {[%clk 0:00:41]}  Qf7 {[%clk 0:01:42]} 29. Qxe5 {[%clk 0:00:35]}  Rc5 {[%clk 0:01:29]} 30. Qd6 {[%clk 0:00:28]}  Rc2 {[%clk 0:01:14]} 31. Nf3 {[%clk 0:00:27]}  Rf8 {[%clk 0:00:51]} 32. Bxd4 {[%clk 0:00:23]}  Rxg2+ {[%clk 0:00:50]} 33. Kxg2 {[%clk 0:00:20]}  Qxf3+ {[%clk 0:00:50]} 34. Kg1 {[%clk 0:00:21]}  Rf4 {[%clk 0:00:44]} 35. Be5 {[%clk 0:00:08]}  Qe3+ {[%clk 0:00:41]} 36. Kh1 {[%clk 0:00:06]}  Qxe4+ {[%clk 0:00:41]} 37. Kg1 {[%clk 0:00:06]}  Qg6+ {[%clk 0:00:33]} 38. Kh1 {[%clk 0:00:06]}  Rf2 {[%clk 0:00:32]} 39. Bg3 {[%clk 0:00:02]}  Qe4+ {[%clk 0:00:32]} 0-1

[Event "December 12 Late 2023"]
[Site "https://www.chess.com"]
[Date "2023.12.12"]
[Round "2"]
[White "Kavyev, Ruslan"]
[Black "Bortnyk, Olexandr"]
[Result "0-1"]
[Board "17"]
[TimeControl "180+1"]
[WhiteFideId "34110981"]
[BlackFideId "14120828"]
[WhiteElo "2591"]
[BlackElo "2989"]
[WhiteTeam "RUS"]
[BlackTeam "UKR"]
[WhiteClock "0:00:00"]
[BlackClock "0:00:05"]

1. d4 {[%clk 0:02:52]}  d6 {[%clk 0:02:53]} 2. e4 {[%clk 0:02:52]}  Nf6 {[%clk 0:02:53]} 3. Nc3 {[%clk 0:02:51]}  Nbd7 {[%clk 0:02:54]} 4. Nf3 {[%clk 0:02:51]}  e5 {[%clk 0:02:54]} 5. Bc4 {[%clk 0:02:51]}  Be7 {[%clk 0:02:55]} 6. O-O {[%clk 0:02:51]}  c6 {[%clk 0:02:56]} 7. a4 {[%clk 0:02:50]}  Qc7 {[%clk 0:02:56]} 8. Qe2 {[%clk 0:02:50]}  h6 {[%clk 0:02:55]} 9. Rd1 {[%clk 0:02:50]}  Nf8 {[%clk 0:02:54]} 10. Ba2 {[%clk 0:02:49]}  Bg4 {[%clk 0:02:50]} 11. h3 {[%clk 0:02:49]}  Bh5 {[%clk 0:02:47]} 12. Qe3 {[%clk 0:02:47]}  Ne6 {[%clk 0:02:45]} 13. d5 {[%clk 0:02:42]}  Nd4 {[%clk 0:02:22]} 14. g4 {[%clk 0:02:37]}  Nxc2 {[%clk 0:02:09]} 15. Qe2 {[%clk 0:02:32]}  Nxa1 {[%clk 0:01:48]} 16. gxh5 {[%clk 0:02:32]}  cxd5 {[%clk 0:01:48]} 17. exd5 {[%clk 0:01:53]}  Qd7 {[%clk 0:01:47]} 18. Kg2 {[%clk 0:01:36]}  Qf5 {[%clk 0:01:45]} 19. Bd2 {[%clk 0:01:21]}  Nc2 {[%clk 0:01:41]} 20. Bb1 {[%clk 0:01:21]}  Nxh5 {[%clk 0:01:41]} 21. Bc1 {[%clk 0:01:15]}  Nf4+ {[%clk 0:00:38]} 22. Bxf4 {[%clk 0:01:13]}  Qxf4 {[%clk 0:00:38]} 23. Qb5+ {[%clk 0:01:07]}  Kf8 {[%clk 0:00:37]} 24. Bxc2 {[%clk 0:01:07]}  g5 {[%clk 0:00:28]} 25. Ne2 {[%clk 0:00:51]}  Qf6 {[%clk 0:00:25]} 26. Qxb7 {[%clk 0:00:50]}  Re8 {[%clk 0:00:22]} 27. Ng3 {[%clk 0:00:50]}  h5 {[%clk 0:00:21]} 28. Qd7 {[%clk 0:00:27]}  a5 {[%clk 0:00:19]} 29. Qf5 {[%clk 0:00:23]}  Rb8 {[%clk 0:00:18]} 30. b3 {[%clk 0:00:21]}  Qxf5 {[%clk 0:00:16]} 31. Nxf5 {[%clk 0:00:21]}  g4 {[%clk 0:00:17]} 32. hxg4 {[%clk 0:00:21]}  hxg4 {[%clk 0:00:18]} 33. Nh2 {[%clk 0:00:16]}  Rb4 {[%clk 0:00:17]} 34. Re1 {[%clk 0:00:14]}  Rh3 {[%clk 0:00:12]} 35. Ng3 {[%clk 0:00:10]}  Rh4 {[%clk 0:00:08]} 36. Re4 {[%clk 0:00:09]}  Rxe4 {[%clk 0:00:06]} 37. Bxe4 {[%clk 0:00:10]}  Bg5 {[%clk 0:00:04]} 38. Nf5 {[%clk 0:00:10]}  Rh3 {[%clk 0:00:04]} 39. Ng3 {[%clk 0:00:10]}  Rh4 {[%clk 0:00:04]} 40. Bf5 {[%clk 0:00:11]}  Bf4 {[%clk 0:00:04]} 41. Nxg4 {[%clk 0:00:09]}  Bxg3 {[%clk 0:00:03]} 42. fxg3 {[%clk 0:00:10]}  Rh5 {[%clk 0:00:03]} 43. Ne3 {[%clk 0:00:08]}  Ke7 {[%clk 0:00:04]} 44. g4 {[%clk 0:00:08]}  Rh8 {[%clk 0:00:04]} 45. Nc4 {[%clk 0:00:09]}  Ra8 {[%clk 0:00:03]} 46. Kf3 {[%clk 0:00:07]}  Ra6 {[%clk 0:00:03]} 47. Ke4 {[%clk 0:00:07]}  Ra8 {[%clk 0:00:03]} 48. Kd3 {[%clk 0:00:07]}  Ra6 {[%clk 0:00:03]} 49. Kc3 {[%clk 0:00:08]}  Ra8 {[%clk 0:00:04]} 50. Bd3 {[%clk 0:00:07]}  Ra7 {[%clk 0:00:02]} 51. Kd2 {[%clk 0:00:06]}  Ra8 {[%clk 0:00:02]} 52. Ke3 {[%clk 0:00:06]}  Ra7 {[%clk 0:00:02]} 53. Na3 {[%clk 0:00:07]}  Rb7 {[%clk 0:00:02]} 54. Bc4 {[%clk 0:00:07]}  Rb8 {[%clk 0:00:02]} 55. Nb5 {[%clk 0:00:07]}  Rg8 {[%clk 0:00:03]} 56. Kf3 {[%clk 0:00:06]}  Rh8 {[%clk 0:00:03]} 57. Na7 {[%clk 0:00:07]}  Rh3+ {[%clk 0:00:03]} 58. Ke4 {[%clk 0:00:07]}  Rg3 {[%clk 0:00:03]} 59. Kf5 {[%clk 0:00:07]}  Rf3+ {[%clk 0:00:04]} 60. Kg5 {[%clk 0:00:07]}  e4 {[%clk 0:00:04]} 61. Nc6+ {[%clk 0:00:08]}  Kd7 {[%clk 0:00:05]} 62. Nxa5 {[%clk 0:00:08]}  e3 {[%clk 0:00:05]} 63. Nc6 {[%clk 0:00:07]}  f6+ {[%clk 0:00:06]} 64. Kg6 {[%clk 0:00:07]}  Rf4 {[%clk 0:00:07]} 65. a5 {[%clk 0:00:06]}  Rxc4 {[%clk 0:00:07]} 66. bxc4 {[%clk 0:00:06]}  e2 {[%clk 0:00:08]} 67. a6 {[%clk 0:00:06]}  e1=Q {[%clk 0:00:08]} 68. a7 {[%clk 0:00:07]}  Qe4+ {[%clk 0:00:06]} 69. Kxf6 {[%clk 0:00:07]}  Qf4+ {[%clk 0:00:07]} 70. Kg6 {[%clk 0:00:06]}  Qxg4+ {[%clk 0:00:08]} 71. Kf6 {[%clk 0:00:07]}  Qf4+ {[%clk 0:00:08]} 72. Kg6 {[%clk 0:00:07]}  Qe4+ {[%clk 0:00:08]} 73. Kf6 {[%clk 0:00:08]}  Qf3+ {[%clk 0:00:08]} 74. Kg6 {[%clk 0:00:08]}  Qd3+ {[%clk 0:00:08]} 75. Kf6 {[%clk 0:00:08]}  Qc3+ {[%clk 0:00:08]} 76. Kf7 {[%clk 0:00:08]}  Qa1 {[%clk 0:00:09]} 77. Kf8 {[%clk 0:00:07]}  Kc7 {[%clk 0:00:09]} 78. Ke7 {[%clk 0:00:07]}  Qe1+ {[%clk 0:00:09]} 79. Kf7 {[%clk 0:00:08]}  Kb7 {[%clk 0:00:10]} 80. Kf6 {[%clk 0:00:08]}  Qe4 {[%clk 0:00:09]} 81. Kf7 {[%clk 0:00:08]}  Ka8 {[%clk 0:00:10]} 82. Kf6 {[%clk 0:00:08]}  Qxc4 {[%clk 0:00:09]} 83. Ke6 {[%clk 0:00:08]}  Qc5 {[%clk 0:00:09]} 84. Ne7 {[%clk 0:00:03]}  Kxa7 {[%clk 0:00:09]} 85. Nf5 {[%clk 0:00:03]}  Kb6 {[%clk 0:00:05]} 86. Nxd6 {[%clk 0:00:04]}  Qe3+ {[%clk 0:00:05]} 87. Kd7 {[%clk 0:00:04]}  Qh3+ {[%clk 0:00:05]} 88. Ke7 {[%clk 0:00:04]}  Kc5 {[%clk 0:00:05]} 89. Nf7 {[%clk 0:00:00]}  Kxd5 {[%clk 0:00:05]} 0-1